[Event "55th Rubinstein Memorial-C 2019"]
[Site "Polanica-Zdroj"]
[Date "2019.08.19"]
[Round "3.7"]
[White "Grzelak, Piotr"]
[Black "Obrochta, Lena"]
[Result "0-1"]
[ECO "B20"]
[WhiteElo "1673"]
[BlackElo "1870"]
[Annotator "NA RC"]
[PlyCount "82"]
[EventDate "2019.08.17"]
[EventType "swiss"]
[EventCountry "POL"]
[SourceTitle "playchess.com"]
[Source "ChessBase"]
[SourceQuality "1"]
[TimeControl "40/5400+30:1800+30"]

{[%evp 9,78,62,32767,32767,65,56,32767,59,67,32767,62,59,56,41,43,32,60,54,58,32767,127,32767,32767,32767,32767,32767,65,30,65,18,32767,87,83,54,229,156,141,72,32767,32767,-7,-160,-129,32767,-455,-435,-446,32767,-811,-766,-1005,-1360,-1614,-1449,-2210,-1500,32767,-29987,32767,32767,32767,32767,32767,32767,32767,32767,32767,32767,-29992,-29996,-896]} 1. e4 {[%emt 0:00:00]} c5 {[%emt 0:00:00]} 2. c4 {[%emt 0:00:00]} e6 {[%emt 0:01:29]} 3. Nc3 {[%emt 0:02:05]} d6 {[%emt 0:00:54]} 4. Nf3 {[%emt 0:00:44]} Nf6 {[%emt 0:00:33]} 5. d4 {[%emt 0:01:49]} cxd4 {[%emt 0:00:07]} 6. Nxd4 {[%emt 0:00:08]} a6 {[%emt 0:00:48]} 7. Be3 {[%emt 0:01:16]} Be7 {[%emt 0:01:01]} 8. Be2 {[%emt 0:01:06]} O-O {[%emt 0:00:39]} 9. O-O {[%emt 0:00:31]} Qc7 {[%emt 0:02:12]} 10. Kh1 {[%emt 0:02:50] B41: Sicilian: Kan Variation: 5 c4} (10. f3 b6 11. Qd2 Bb7 12. Rfc1 Nbd7 13. a4 Rfe8 14. a5 bxa5 15. Nb3 Rab8 16. Nxa5 Ba8 17. b4 d5 18. c5 dxe4 19. fxe4 Nxe4 20. Nxe4 Bxe4 21. Bxa6 {1-0 (30) Ragger,M (2687)-Geller,J (2518) St Petersburg 2018}) 10... b6 {[%emt 0:00:45]} 11. Qd2 {[%emt 0:04:37]} Bb7 {[%emt 0:00:15]} 12. f3 {[%emt 0:03:41]} Nbd7 {[%emt 0:01:11]} 13. Rac1 {[%emt 0:01:46]} Rac8 {[%emt 0:03:13] [#]} 14. g4 $146 {[%emt 0:02:10]} ({Predecessor:} 14. Rfd1 Rfe8 15. b3 Qb8 16. Bf1 Bd8 17. Bg1 Be7 18. a4 Nc5 19. Qa2 Bf8 {0-1 (37) Cmilyte,V (2514)-Zhao,X (2568) Beijing 2013}) 14... Rfd8 {[%emt 0:07:35]} (14... Qd8 $14) 15. g5 {[%emt 0:02:37]} Ne8 {[%emt 0:00:26]} 16. h4 {[%emt 0:11:32]} Qb8 {[%emt 0:08:32]} 17. Rf2 {[%emt 0:10:14]} Nc7 {[%emt 0:09:49]} 18. Rcf1 {[%emt 0:04:12]} Qa8 {[%emt 0:03:35]} 19. Kg1 {[%emt 0:04:03]} (19. h5 $16) 19... Nc5 {[%emt 0:07:00]} 20. b4 {[%emt 0:01:39]} Nd7 {[%emt 0:00:09]} 21. h5 {[%emt 0:01:51]} g6 $2 {[%emt 0:07:39]} ({Better is} 21... d5 $14) 22. Bd3 {[%emt 0:07:48]} (22. f4 $18) 22... d5 {[%emt 0:01:34] [#]} 23. hxg6 {[%emt 0:02:13]} (23. exd5 $1 $18 {is the precise move to win.} exd5 24. f4 Bxb4 25. hxg6 fxg6 26. f5) 23... fxg6 {[%emt 0:01:23]} 24. Nxe6 {[%emt 0:04:33]} Nxe6 {[%emt 0:01:21]} 25. exd5 {[%emt 0:01:29]} (25. Nxd5 $15 Bxd5 26. cxd5) 25... Bxb4 {[%emt 0:05:33]} 26. Bxg6 {[%emt 0:11:46]} hxg6 {[%emt 0:02:15]} 27. dxe6 {[%emt 0:00:53]} Ne5 {[%emt 0:01:17] Double Attack, Discovered Attack} 28. Qe2 {[%emt 0:04:07]} Bxc3 {[%emt 0:03:27]} 29. f4 {[%emt 0:00:21]} Nxc4 {[%emt 0:03:37]} 30. Qc2 {[%emt 0:01:26]} Be4 {[%emt 0:02:04]} 31. Qxc3 {[%emt 0:00:34]} Nxe3 {[%emt 0:00:40]} 32. Qxe3 {[%emt 0:01:57]} Rd3 {[%emt 0:01:17]} 33. Qxb6 {[%emt 0:00:56]} Rg3+ {[%emt 0:01:28]} 34. Kh2 {[%emt 0:00:14]} Rcc3 {[%emt 0:00:06]} 35. Rd2 {[%emt 0:03:43]} Rh3+ {[%emt 0:01:16]} 36. Kg1 {[%emt 0:00:06]} Rh1+ {[%emt 0:00:29]} 37. Kf2 {[%emt 0:00:11]} Rf3+ {[%emt 0:00:10]} 38. Ke2 {[%emt 0:01:15]} Rh2+ {[%emt 0:00:35] Decoy} 39. Ke1 {[%emt 0:01:40]} Rxf1+ $19 {[%emt 0:00:17]} 40. Kxf1 {[%emt 0:00:11]} Bd3+ {[%emt 0:00:35]} 41. Ke1 {[%emt 0:33:12]} Qh1+ {[%emt 0:30:12]} 0-1

[Event "55th Rubinstein Memorial-C 2019"]
[Site "Polanica-Zdroj"]
[Date "2019.08.19"]
[Round "3.8"]
[White "Topola, Rafal"]
[Black "Kaliszuk, Kamil"]
[Result "0-1"]
[ECO "C50"]
[WhiteElo "1660"]
[BlackElo "1853"]
[Annotator "NA RC"]
[PlyCount "124"]
[EventDate "2019.08.17"]
[EventType "swiss"]
[EventCountry "POL"]
[SourceTitle "playchess.com"]
[Source "ChessBase"]
[SourceQuality "1"]
[TimeControl "40/5400+30:1800+30"]

{[%evp 11,124,17,32767,32767,32767,13,17,22,0,-25,-40,-255,-264,-234,32767,32767,32767,32767,32767,-268,32767,32767,32767,-122,32767,-140,-145,32767,-162,-178,-161,-173,-187,-282,-291,-295,-290,-284,-282,32767,-304,-298,-192,-461,-349,-373,-376,-333,32767,32767,-344,-383,32767,32767,32767,32767,32767,-316,-341,-337,32767,32767,32767,32767,32767,32767,-693,-779,-1662,-837,-5600,-1211,-4964,-2099,-272,-5483,-1597,-4134,32767,-4810,-4827,-5073,-6268,-12799,32767,32767,32767,32767,32767,32767,32767,32767,32767,32767,32767,32767,32767,-29984,32767,-29987,-29984,32767,32767,-29973,32767,-2309,-29968,-5578,-29970,-5065,-29975,-29977,32767,32767,-29985]} 1. e4 {[%emt 0:00:00]} e5 {[%emt 0:01:05]} 2. Nf3 {[%emt 0:00:00]} Nc6 {[%emt 0:00:07]} 3. Bc4 {[%emt 0:01:00]} Bc5 {[%emt 0:00:50]} 4. O-O {[%emt 0:00:49]} Nf6 {[%emt 0:00:21]} 5. d3 {[%emt 0:01:19]} d6 {[%emt 0:02:32]} 6. c3 {[%emt 0:01:14]} a6 {[%emt 0:01:43]} 7. Bb3 {[%emt 0:00:10]} Ba7 {[%emt 0:00:05]} 8. h3 {[%emt 0:02:28] C54: Giuoco Piano: 4 c3 Nf6, main lines with 5 d4 and 5 d3} (8. Re1 h6 9. Nbd2 Nh5 10. Nf1 Qf6 11. Ne3 Bxe3 12. fxe3 Qg6 13. Rf1 Nf6 14. Nh4 Qg5 15. Nf3 Qg6 16. Nh4 {1-0 (57) Swiercz,D (2655)-Maghsoodloo,P (2673) Astana 2019}) 8... h6 {[%emt 0:01:00]} 9. Re1 {[%emt 0:00:11]} g5 {[%emt 0:00:11]} 10. d4 {[%emt 0:04:15]} g4 {[%emt 0:07:57]} 11. dxe5 $2 {[%emt 0:08:07]} (11. hxg4 $11 {and White stays safe.} Nxg4 12. Bd5) 11... gxf3 {[%emt 0:01:42]} 12. exf6 {[%emt 0:00:01]} Qxf6 {[%emt 0:02:04]} 13. Qxf3 $146 {[%emt 0:00:15]} ({Predecessor:} 13. g4 Rg8 14. Qd2 Qh4 15. Bxf7+ Kd8 16. Re3 Rxg4+ 17. hxg4 Qxg4+ 18. Kf1 Qh3+ {0-1 (18) Vatinyan,G (1960)-Mamedov,R (2218) Donetsk 2011}) 13... Qxf3 {[%emt 0:00:09]} 14. gxf3 {[%emt 0:00:01]} Ne5 {[%emt 0:01:44]} 15. Rd1 {[%emt 0:12:49]} Nxf3+ {[%emt 0:08:56]} 16. Kg2 {[%emt 0:00:09]} Ne5 {[%emt 0:01:18]} 17. Bf4 {[%emt 0:01:18]} Rg8+ {[%emt 0:00:47]} 18. Bg3 {[%emt 0:01:04]} h5 {[%emt 0:00:19]} 19. h4 {[%emt 0:00:38]} Bg4 {[%emt 0:00:28]} 20. Nd2 {[%emt 0:10:12]} Bxd1 {[%emt 0:04:46]} 21. Rxd1 {[%emt 0:00:03]} Nd3 {[%emt 0:05:21]} 22. Nf3 {[%emt 0:06:34]} (22. Kf1 {might work better.}) 22... Nxf2 $1 {[%emt 0:04:31]} ({Inferior is} 22... Nxb2 23. Rd2 $16) 23. Re1 {[%emt 0:03:38]} Nd3 {[%emt 0:06:54]} 24. Rf1 {[%emt 0:00:24]} Nc5 {[%emt 0:01:54]} ({Weaker is} 24... Nxb2 25. Ng5 $17) 25. Ng5 {[%emt 0:01:44]} Nxb3 {[%emt 0:01:10]} 26. axb3 {[%emt 0:00:01]} Be3 {[%emt 0:06:24]} 27. Nxf7 $2 {[%emt 0:00:32]} (27. Nh7 {only move.}) 27... Rf8 {[%emt 0:00:16]} 28. Re1 {[%emt 0:02:05]} Bd2 {[%emt 0:01:17]} ({Don't do} 28... Kxf7 29. Rxe3 Ke6 30. Rf3 $19) 29. Rd1 {[%emt 0:00:00]} Rxf7 {[%emt 0:00:12]} 30. Rxd2 {[%emt 0:00:01]} Ke7 {[%emt 0:00:45]} 31. Rd5 {[%emt 0:02:36]} Rh7 {[%emt 0:03:33]} 32. e5 {[%emt 0:00:41]} dxe5 {[%emt 0:00:35]} 33. Rxe5+ {[%emt 0:00:01]} Kd7 {[%emt 0:00:23]} 34. Kf3 {[%emt 0:04:07]} Rf8+ {[%emt 0:00:51]} 35. Ke4 {[%emt 0:04:37]} Rg7 {[%emt 0:05:02]} 36. Rg5 {[%emt 0:01:10]} Rxg5 {[%emt 0:00:35]} 37. hxg5 {[%emt 0:00:31]} Ke6 {[%emt 0:00:48]} 38. Bxc7 {[%emt 0:01:03]} Rf2 {[%emt 0:00:13]} 39. b4 {[%emt 0:05:10]} h4 {[%emt 0:00:53]} 40. Kd4 {[%emt 0:01:05]} h3 {[%emt 0:02:15]} 41. Kc5 {[%emt 0:31:50]} Rf5+ {[%emt 0:30:54]} 42. Kb6 {[%emt 0:00:36]} Rb5+ {[%emt 0:00:07]} 43. Ka7 {[%emt 0:00:06]} Kf5 {[%emt 0:00:08]} 44. b3 {[%emt 0:01:48]} Kxg5 {[%emt 0:00:08]} 45. Bd6 {[%emt 0:02:11]} Kg4 {[%emt 0:00:13]} 46. c4 {[%emt 0:00:08] [#]} Rxb4 $1 {[%emt 0:01:06] Promotion} 47. Bxb4 {[%emt 0:00:02]} h2 {[%emt 0:00:01]} 48. Kxb7 {[%emt 0:00:18]} h1=Q+ {[%emt 0:00:02]} 49. Kxa6 {[%emt 0:00:21]} Qa8+ {[%emt 0:00:19]} 50. Kb5 {[%emt 0:01:58]} Qb7+ {[%emt 0:00:02]} 51. Ka4 {[%emt 0:00:18]} Kf5 {[%emt 0:00:16]} 52. Ba5 {[%emt 0:00:41]} Ke5 {[%emt 0:00:09]} 53. c5 {[%emt 0:01:04]} Kd4 {[%emt 0:00:35]} 54. Bb6 {[%emt 0:01:02]} Kc3 {[%emt 0:01:24]} 55. Kb5 {[%emt 0:00:27]} Kxb3 {[%emt 0:00:11]} 56. c6 {[%emt 0:00:05]} Qc8 {[%emt 0:00:10]} 57. c7 {[%emt 0:00:15]} Kc3 {[%emt 0:00:29]} 58. Kc6 {[%emt 0:00:18]} Kb4 {[%emt 0:00:19]} 59. Bc5+ {[%emt 0:00:35]} Ka5 {[%emt 0:00:09]} 60. Bd6 {[%emt 0:11:12]} Ka6 {[%emt 0:00:42]} 61. Kc5 {[%emt 0:01:18]} Qd7 {[%emt 0:00:18]} 62. Kd5 {[%emt 0:02:58]} Kb7 {[%emt 0:00:32]} 0-1

[Event "55th Rubinstein Memorial-C 2019"]
[Site "Polanica-Zdroj"]
[Date "2019.08.19"]
[Round "3.9"]
[White "Koscielny, Edmond"]
[Black "Rog, Bartlomiej"]
[Result "0-1"]
[ECO "A02"]
[WhiteElo "1841"]
[BlackElo "1540"]
[Annotator "NA RC"]
[PlyCount "42"]
[EventDate "2019.08.17"]
[EventType "swiss"]
[EventCountry "POL"]
[SourceTitle "playchess.com"]
[Source "ChessBase"]
[SourceQuality "1"]
[TimeControl "40/5400+30:1800+30"]

{[%evp 9,42,-29,-37,-39,-37,-37,0,-28,32767,32767,32767,32767,32767,64,32767,32767,32767,-25,-19,-15,-50,-22,-6,32767,32767,-68,-45,-72,32767,-209,32767,-237,-238,-29997,-29998]} 1. f4 {[%emt 0:00:00]} e5 {[%emt 0:00:00]} 2. d3 {[%emt 0:00:00]} exf4 {[%emt 0:02:06]} 3. Bxf4 {[%emt 0:00:17]} d5 {[%emt 0:02:20]} 4. Nf3 {[%emt 0:04:23]} Nf6 {[%emt 0:03:26]} 5. Nc3 {[%emt 0:03:43]} Bb4 {[%emt 0:01:12]} 6. a3 {[%emt 0:00:21] A02: Bird's Opening} Bxc3+ $146 {[%emt 0:03:56]} ({Predecessor:} 6... Ba5 7. b4 Bb6 8. Na4 O-O 9. g3 Nc6 10. Bg2 d4 11. O-O {1-0 (49) Jan,P (2140)-Bush,F (2045) ICCF email 2006}) 7. bxc3 {[%emt 0:00:07]} Bg4 {[%emt 0:01:31]} 8. g3 {[%emt 0:04:34]} O-O {[%emt 0:14:39]} 9. Bg2 {[%emt 0:09:27]} Nh5 {[%emt 0:02:26]} 10. Bd2 {[%emt 0:04:19]} f5 {[%emt 0:05:12]} 11. O-O {[%emt 0:01:20]} Nc6 {[%emt 0:01:10]} 12. Qb1 {[%emt 0:09:28]} Rb8 {[%emt 0:12:48]} 13. Ng5 {[%emt 0:09:33]} (13. Qb5 $14) 13... f4 $1 {[%emt 0:05:35]} 14. gxf4 {[%emt 0:02:54]} h6 {[%emt 0:04:04]} 15. h3 {[%emt 0:03:57]} hxg5 {[%emt 0:02:28]} 16. hxg4 {[%emt 0:00:17]} Ng3 {[%emt 0:00:10]} 17. Qb3 {[%emt 0:07:13]} ({White should play} 17. Rf2 $11 gxf4 18. Qb5 Nxe2+ {[%mdl 64] Remove Defender} 19. Rxe2) 17... Nxe2+ {[%emt 0:07:51]} 18. Kh2 {[%emt 0:01:34]} Ne7 {[%emt 0:03:06]} 19. Qb4 {[%emt 0:08:47]} (19. Rae1 $17 Nxf4 20. Qb4) 19... gxf4 {[%emt 0:03:01]} 20. Rae1 {[%emt 0:09:52]} Nc6 {[%emt 0:04:53]} 21. Qc5 {[%emt 0:00:29]} (21. Qxf8+ $19 Kxf8 22. Rxe2) 21... Qh4+ {[%emt 0:00:23] Double Attack} 0-1

[Event "55th Rubinstein Memorial-C 2019"]
[Site "Polanica-Zdroj"]
[Date "2019.08.19"]
[Round "3.10"]
[White "Wianecki, Mateusz"]
[Black "Karnasiewicz, Robert"]
[Result "0-1"]
[ECO "A01"]
[WhiteElo "1634"]
[BlackElo "1803"]
[Annotator "NA RC"]
[PlyCount "138"]
[EventDate "2019.08.17"]
[EventType "swiss"]
[EventCountry "POL"]
[SourceTitle "playchess.com"]
[Source "ChessBase"]
[SourceQuality "1"]
[TimeControl "40/5400+30:1800+30"]

1. b3 {[%emt 0:05:30]} Nf6 {[%emt 0:00:17]} 2. Bb2 {[%emt 0:00:04]} g6 {[%emt 0:00:15]} 3. g4 {[%emt 0:00:11]} Bg7 {[%emt 0:00:58]} 4. g5 {[%emt 0:00:04]} Nh5 {[%emt 0:00:07]} 5. Bxg7 {[%emt 0:00:06]} (5. Qc1 e5 6. h4 d5 7. e3 h6 8. Nf3 d4 9. Bc4 Bg4 10. Nh2 Bc8 11. Nf3 Bg4 12. Nh2 Bc8 13. Nf3 Bg4 14. Nh2 {½-½ (14) Safarli,E (2649)-Mamedov,R (2659) Kocaeli 2014}) 5... Nxg7 {[%emt 0:00:06]} 6. d4 {[%emt 0:00:02] A01: Nimzowitsch-Larsen Opening} c5 $146 {[%emt 0:00:41]} ({Predecessor:} 6... d6 7. Nf3 Bg4 8. Bg2 Bxf3 9. Bxf3 c6 10. Qd2 Nd7 11. Nc3 Qa5 12. Bg4 f5 13. gxf6 Nxf6 14. Bf3 O-O 15. Ne4 Qxd2+ 16. Nxd2 Ne6 17. c3 Rf7 18. h4 {1-0 (18) Goodhue,N (1996)-Forster,W (1908) Auckland 2011}) 7. dxc5 {[%emt 0:01:01]} Qa5+ {[%emt 0:00:58]} 8. Qd2 {[%emt 0:00:06]} Qxc5 {[%emt 0:00:07]} 9. Nc3 {[%emt 0:00:44]} O-O {[%emt 0:05:43]} 10. Bg2 {[%emt 0:03:16]} Nc6 {[%emt 0:01:13]} 11. Nf3 {[%emt 0:00:34]} d6 {[%emt 0:14:09]} 12. Ne4 {[%emt 0:09:27]} Qb4 {[%emt 0:01:25]} 13. Nc3 {[%emt 0:04:33]} Be6 {[%emt 0:07:33]} 14. a3 {[%emt 0:00:44]} Qa5 {[%emt 0:00:51]} 15. O-O {[%emt 0:01:33]} Rac8 {[%emt 0:03:53]} 16. b4 {[%emt 0:00:49]} Qc7 {[%emt 0:02:21]} 17. Rfc1 {[%emt 0:05:38]} Qd7 {[%emt 0:02:44]} 18. Nd5 {[%emt 0:06:35]} b6 {[%emt 0:07:46]} 19. c4 {[%emt 0:09:08]} Rfe8 {[%emt 0:00:26]} 20. Nf4 {[%emt 0:03:49]} Bg4 {[%emt 0:03:10]} 21. Ne1 {[%emt 0:16:32]} ({White should try} 21. Rc3 $11) 21... Ne5 {[%emt 0:01:33]} 22. h3 {[%emt 0:05:09]} Bf5 {[%emt 0:00:57]} 23. c5 {[%emt 0:09:00]} bxc5 {[%emt 0:07:50]} 24. bxc5 {[%emt 0:00:02]} Rxc5 {[%emt 0:00:37]} 25. Rxc5 {[%emt 0:00:28]} dxc5 {[%emt 0:00:02]} 26. Qc3 {[%emt 0:01:54]} Qd4 {[%emt 0:01:36]} 27. Qxd4 {[%emt 0:02:40]} cxd4 {[%emt 0:00:01]} 28. Rd1 {[%emt 0:05:30]} Rd8 {[%emt 0:02:54]} 29. e3 {[%emt 0:00:51]} d3 {[%emt 0:03:03] 4] Be6} 30. e4 {[%emt 0:00:06]} Be6 {[%emt 0:03:35]} 31. Nexd3 {[%emt 0:04:20]} Bb3 {[%emt 0:00:57]} 32. Rd2 $2 {[%emt 0:00:07]} (32. Rc1 $1 $11 Nxd3 33. Nxd3) 32... Ne6 {[%emt 0:01:46]} 33. Nd5 {[%emt 0:01:35] [#]} Nxd3 {[%emt 0:01:52]} ({Black should try} 33... Nc4 $1 $19 {[%cal Rc4d2]} 34. Re2 Kf8) 34. Rxd3 {[%emt 0:00:03]} Bxd5 $1 {[%emt 0:00:08]} 35. exd5 {[%emt 0:01:09]} Nf4 {[%emt 0:03:30]} 36. Re3 {[%emt 0:02:32]} Nxd5 {[%emt 0:00:35]} 37. Bxd5 {[%emt 0:00:21]} Rxd5 {[%emt 0:00:01]} 38. f4 {[%emt 0:01:18]} e6 {[%emt 0:00:16]} 39. Kf2 {[%emt 0:00:50]} Kg7 {[%emt 0:00:20]} 40. Kf3 {[%emt 0:00:07]} h5 {[%emt 0:00:49]} 41. h4 $19 {[%emt 0:31:13]} (41. Ke4 $17 {might work better.}) 41... Rd4 {[%emt 0:30:59]} 42. Rb3 {[%emt 0:00:19]} a5 {[%emt 0:00:32]} 43. Rc3 {[%emt 0:00:28]} Rd1 {[%emt 0:02:53]} 44. Kf2 {[%emt 0:00:46]} Rd2+ {[%emt 0:01:30]} 45. Kf3 {[%emt 0:00:43]} Rh2 {[%emt 0:00:37]} 46. Kg3 {[%emt 0:00:08]} Rb2 {[%emt 0:00:43]} 47. Kf3 {[%emt 0:00:36]} Rh2 {[%emt 0:01:56]} 48. Kg3 {[%emt 0:00:06]} Ra2 {[%emt 0:00:10]} 49. Kf3 {[%emt 0:00:11]} Rb2 {[%emt 0:02:26]} 50. Ke4 {[%emt 0:01:20]} Rh2 {[%emt 0:01:29]} 51. Rc5 {[%emt 0:00:01]} Rxh4 {[%emt 0:00:07]} 52. Rxa5 {[%emt 0:00:11]} Rh3 {[%emt 0:00:05]} 53. Ra8 {[%emt 0:01:13]} Rb3 {[%emt 0:00:16]} 54. a4 {[%emt 0:00:18]} h4 {[%emt 0:00:26]} 55. a5 {[%emt 0:00:04]} Ra3 {[%emt 0:00:39]} 56. a6 {[%emt 0:00:21]} h3 {[%emt 0:00:17]} 57. Rb8 {[%emt 0:01:16]} Rxa6 {[%emt 0:00:06]} 58. Rb3 {[%emt 0:00:37]} h2 {[%emt 0:00:08]} 59. Rh3 {[%emt 0:00:19]} Ra2 {[%emt 0:00:06]} 60. Ke5 {[%emt 0:00:50]} Re2+ {[%emt 0:00:15]} 61. Kd4 {[%emt 0:00:07]} Kf8 {[%emt 0:00:19]} 62. Kd3 {[%emt 0:00:08]} Ra2 {[%emt 0:00:10]} 63. Ke4 {[%emt 0:00:06]} Ke7 {[%emt 0:00:07]} 64. Rh7 {[%emt 0:00:40]} Kd6 {[%emt 0:00:38]} 65. Rh8 {[%emt 0:00:41]} Ra4+ {[%emt 0:02:49]} 66. Kf3 {[%emt 0:00:30]} e5 {[%emt 0:00:28]} 67. fxe5+ {[%emt 0:00:21]} Kxe5 {[%emt 0:00:02]} 68. Rxh2 {[%emt 0:01:27]} Kf5 {[%emt 0:00:06]} 69. Rg2 {[%emt 0:00:31]} Ra3+ {[%emt 0:00:07]} 0-1

[Event "55th Rubinstein Memorial-C 2019"]
[Site "Polanica-Zdroj"]
[Date "2019.08.19"]
[Round "3.11"]
[White "Kozlowski, Andrzej"]
[Black "Burdzicki, Stanislaw"]
[Result "0-1"]
[ECO "A00"]
[WhiteElo "1566"]
[BlackElo "1785"]
[Annotator "NA RC"]
[PlyCount "104"]
[EventDate "2019.08.17"]
[EventType "swiss"]
[EventCountry "POL"]
[SourceTitle "playchess.com"]
[Source "ChessBase"]
[SourceQuality "1"]
[TimeControl "40/5400+30:1800+30"]

1. e3 {[%emt 0:00:00]} d5 {[%emt 0:01:24]} 2. f4 {[%emt 0:00:00]} c5 {[%emt 0:00:44]} 3. Nf3 {[%emt 0:00:00]} a6 {[%emt 0:00:55]} 4. b3 {[%emt 0:00:16]} Nc6 {[%emt 0:00:08]} 5. Bb2 {[%emt 0:00:17]} d4 {[%emt 0:00:32]} 6. Bd3 {[%emt 0:03:59]} Nf6 {[%emt 0:11:16]} 7. O-O {[%emt 0:00:56]} g6 {[%emt 0:01:07]} 8. a4 {[%emt 0:01:58]} Bg7 {[%emt 0:00:50]} 9. Na3 {[%emt 0:01:17]} O-O {[%emt 0:00:54]} 10. Nc4 {[%emt 0:02:45]} Nd5 {[%emt 0:14:24]} 11. Qe2 {[%emt 0:06:56]} Rb8 {[%emt 0:01:49]} 12. a5 {[%emt 0:00:52]} Ncb4 {[%emt 0:05:27]} 13. Rfc1 {[%emt 0:08:43]} Bg4 {[%emt 0:12:13]} 14. Be4 {[%emt 0:02:53]} Nf6 {[%emt 0:02:29]} 15. exd4 {[%emt 0:08:10]} cxd4 {[%emt 0:09:37]} 16. d3 {[%emt 0:11:54]} Nfd5 {[%emt 0:10:09]} 17. Qd2 {[%emt 0:02:22]} Nc6 {[%emt 0:00:04]} 18. Nfe5 {[%emt 0:05:41]} Nxe5 {[%emt 0:14:37]} 19. fxe5 {[%emt 0:01:45]} Nc7 {[%emt 0:01:08]} 20. Qf4 {[%emt 0:03:30]} Be6 {[%emt 0:00:39]} 21. Nb6 {[%emt 0:01:17]} Nb5 {[%emt 0:01:25]} 22. Nc4 {[%emt 0:08:41]} Qc7 {[%emt 0:00:14]} 23. Qf3 {[%emt 0:02:03]} Bxc4 {[%emt 0:05:01]} 24. dxc4 {[%emt 0:03:58]} Nc3 {[%emt 0:00:04]} 25. Bxc3 {[%emt 0:04:07]} dxc3 {[%emt 0:00:09]} 26. Rd1 {[%emt 0:03:02]} Bxe5 {[%emt 0:00:42]} 27. g3 {[%emt 0:00:30]} e6 {[%emt 0:00:24]} 28. Bd3 {[%emt 0:01:11]} Rfd8 {[%emt 0:02:15]} 29. b4 {[%emt 0:01:45]} Bd6 {[%emt 0:01:49]} 30. Rab1 {[%emt 0:02:12]} Bxb4 {[%emt 0:00:24]} 31. Rf1 {[%emt 0:01:39]} Bxa5 32. Qf6 {[%emt 0:01:05]} Bb6+ {[%emt 0:01:16]} 33. Kg2 {[%emt 0:00:54]} Bd4 {[%emt 0:00:11]} 34. Qf3 {[%emt 0:01:11]} e5 {[%emt 0:01:09]} 35. g4 {[%emt 0:01:12]} Qe7 {[%emt 0:00:58]} 36. Be4 {[%emt 0:00:24]} b5 {[%emt 0:00:31]} 37. Bd5 {[%emt 0:01:18]} Rf8 {[%emt 0:00:15]} 38. Ra1 {[%emt 0:01:01]} Rb6 {[%emt 0:01:00]} 39. Qe4 {[%emt 0:00:51]} Rf6 {[%emt 0:00:27]} 40. cxb5 {[%emt 0:02:48]} axb5 {[%emt 0:00:20]} 41. Rfd1 {[%emt 0:31:19]} Rf4 {[%emt 0:30:54]} 42. Qe1 {[%emt 0:01:08]} Rxg4+ {[%emt 0:00:30]} 43. Kf3 {[%emt 0:00:49]} Qg5 {[%emt 0:00:26]} 44. Rd3 {[%emt 0:01:30]} Rg2 {[%emt 0:00:19]} 45. Rxd4 {[%emt 0:00:48]} exd4 {[%emt 0:00:17]} 46. Qe4 {[%emt 0:01:07]} Rd2 {[%emt 0:00:32]} 47. Ra7 {[%emt 0:00:37]} Qf6+ {[%emt 0:00:34]} 48. Kg3 {[%emt 0:00:21]} Qf2+ {[%emt 0:00:18]} 49. Kg4 {[%emt 0:00:17]} Qe2+ {[%emt 0:01:00]} 50. Kg5 {[%emt 0:00:32]} Qh5+ {[%emt 0:00:33]} 51. Kf6 {[%emt 0:00:26]} Rf2+ {[%emt 0:00:27]} 52. Ke7 {[%emt 0:00:25]} Re2 {[%emt 0:00:17]} 0-1